[Event "DEN-chT XtraCon 2018-19"]
[Site "Denmark"]
[Date "2018.12.09"]
[Round "4"]
[White "Bromann, Thorbjorn"]
[Black "Skaanning-Pedersen, Kim Henrik"]
[Result "1-0"]
[ECO "B07"]
[WhiteElo "2387"]
[BlackElo "2207"]
[Annotator "NA"]
[PlyCount "41"]
[EventDate "2018.10.27"]
[EventType "team-tourn"]
[EventCountry "DEN"]
[SourceTitle "playchess.com"]
[Source "ChessBase"]
[SourceQuality "1"]
[TimeControl "40/5400+30:1800+30"]

1. d4 {[%emt 0:00:00]} Nf6 {[%emt 0:00:00]} 2. Nc3 {[%emt 0:02:49]} g6 {[%emt 0:03:02]} 3. e4 {[%emt 0:00:14]} d6 {[%emt 0:00:05]} 4. Bg5 {[%emt 0:01:07]} Bg7 {[%emt 0:00:36]} 5. f4 {[%emt 0:00:08]} c6 {[%emt 0:01:48]} 6. Nf3 {[%emt 0:04:59]} b5 {[%emt 0:04:41]} 7. Bd3 {[%emt 0:00:41]} O-O {[%emt 0:01:11]} 8. O-O {[%emt 0:12:47]} Qb6 {[%emt 0:04:42]} 9. e5 {[%emt 0:10:19]} b4 {[%emt 0:05:33]} 10. Na4 {[%emt 0:07:22]} Qa5 {[%emt 0:00:22]} 11. c4 {[%emt 0:02:55]} bxc3 {[%emt 0:09:47]} 12. exf6 {[%emt 0:02:34]} exf6 {[%emt 0:00:06]} 13. Bh4 {[%emt 0:00:23]} cxb2 {[%emt 0:00:26]} 14. Nxb2 {[%emt 0:00:30]} Be6 {[%emt 0:01:39]} 15. Nc4 {[%emt 0:01:44]} Qc7 {[%emt 0:00:13]} 16. f5 {[%emt 0:02:05]} Bd5 {[%emt 0:00:23]} 17. Ne3 {[%emt 0:03:11]} Bxf3 {[%emt 0:01:14]} 18. Qxf3 {[%emt 0:03:07]} Nd7 {[%emt 0:00:26]} 19. Rfc1 {[%emt 0:10:13]} Rac8 {[%emt 0:00:41]} 20. Nd5 {[%emt 0:09:24]} Qd8 {[%emt 0:00:36]} 21. Ba6 {[%emt 0:00:07]} 1-0

[Event "DEN-chT XtraCon 2018-19"]
[Site "Denmark"]
[Date "2018.12.09"]
[Round "4"]
[White "Aabling-Thomsen, Jakob"]
[Black "Rodgaard, John"]
[Result "0-1"]
[ECO "C00"]
[WhiteElo "2380"]
[BlackElo "2285"]
[Annotator "NA"]
[PlyCount "94"]
[EventDate "2018.10.27"]
[EventType "team-tourn"]
[EventCountry "DEN"]
[SourceTitle "playchess.com"]
[Source "ChessBase"]
[SourceQuality "1"]
[TimeControl "40/5400+30:1800+30"]

1. e4 {[%emt 0:00:00]} e6 {[%emt 0:00:40]} 2. d3 {[%emt 0:00:13]} d5 {[%emt 0:00:21]} 3. Qe2 {[%emt 0:00:06]} Nf6 {[%emt 0:03:52]} 4. Nf3 {[%emt 0:00:19]} c5 {[%emt 0:01:17]} 5. g3 {[%emt 0:00:14]} Nc6 {[%emt 0:01:08]} 6. Bg2 {[%emt 0:00:41]} Be7 {[%emt 0:01:59]} 7. O-O {[%emt 0:01:04]} b5 {[%emt 0:04:18]} 8. e5 {[%emt 0:02:25]} Nd7 {[%emt 0:01:01]} 9. c4 {[%emt 0:00:03]} bxc4 {[%emt 0:05:08]} 10. dxc4 {[%emt 0:00:13]} Nb6 {[%emt 0:05:02]} 11. b3 {[%emt 0:04:06]} a5 {[%emt 0:13:37]} 12. Nc3 {[%emt 0:06:23]} a4 {[%emt 0:05:55]} 13. Bb2 {[%emt 0:09:19]} Ba6 {[%emt 0:05:26]} 14. Rfd1 {[%emt 0:18:42]} Qc8 {[%emt 0:06:51]} 15. Nd2 {[%emt 0:05:03]} O-O {[%emt 0:03:42]} 16. Nxa4 {[%emt 0:05:30]} Nxa4 {[%emt 0:01:59]} 17. bxa4 {[%emt 0:01:35]} Na5 {[%emt 0:01:15]} 18. Rac1 {[%emt 0:09:59]} Ra7 {[%emt 0:04:33]} 19. Qg4 {[%emt 0:08:41]} Nxc4 {[%emt 0:02:31]} 20. Bc3 {[%emt 0:00:50]} Rd8 {[%emt 0:04:43]} 21. Nf3 {[%emt 0:01:33]} Bb7 {[%emt 0:04:08]} 22. a5 {[%emt 0:04:18]} d4 {[%emt 0:10:44]} 23. Be1 {[%emt 0:04:00]} Bd5 {[%emt 0:03:12]} 24. Qh5 {[%emt 0:02:39]} h6 {[%emt 0:01:43]} 25. Bd2 {[%emt 0:09:11]} Nxd2 {[%emt 0:00:53]} 26. Rxd2 {[%emt 0:00:32]} Bxf3 {[%emt 0:01:27]} 27. Qxf3 {[%emt 0:03:19]} Bg5 {[%emt 0:00:03]} 28. Qd1 {[%emt 0:01:19]} Bxd2 {[%emt 0:00:13]} 29. Qxd2 {[%emt 0:00:02]} c4 {[%emt 0:01:17]} 30. Qb4 {[%emt 0:00:23]} c3 {[%emt 0:01:54]} 31. Bf1 {[%emt 0:00:50]} Qc7 {[%emt 0:00:51]} 32. a6 {[%emt 0:00:14]} Qxe5 {[%emt 0:00:31]} 33. Bd3 {[%emt 0:01:06]} Qd6 {[%emt 0:00:53]} 34. Qa4 {[%emt 0:00:20]} Rb8 {[%emt 0:00:37]} 35. Re1 {[%emt 0:01:27]} Qb4 {[%emt 0:01:37]} 36. Qc6 {[%emt 0:00:19]} c2 {[%emt 0:00:12]} 37. Qe4 {[%emt 0:00:02]} Qxe1+ {[%emt 0:01:02]} 38. Qxe1 {[%emt 0:00:05]} Rb1 {[%emt 0:00:04]} 39. Qxb1 {[%emt 0:00:33]} cxb1=Q+ {[%emt 0:00:05]} 40. Bxb1 {[%emt 0:00:06]} Rxa6 {[%emt 0:00:16]} 41. Kf1 {[%emt 0:31:31]} Kf8 {[%emt 0:30:29]} 42. Ke1 {[%emt 0:00:20]} Ke7 {[%emt 0:00:19]} 43. Kd2 {[%emt 0:00:34]} Ra3 {[%emt 0:00:28]} 44. f4 {[%emt 0:01:03]} Kd6 {[%emt 0:00:10]} 45. Kc2 {[%emt 0:00:00]} Kc5 {[%emt 0:00:00]} 46. Kb2 {[%emt 0:00:00]} Re3 {[%emt 0:00:00]} 47. Bh7 {[%emt 0:00:00]} f6 {[%emt 0:00:00]} 0-1

[Event "DEN-chT XtraCon 2018-19"]
[Site "Denmark"]
[Date "2018.12.09"]
[Round "4"]
[White "Christensen, Tobias"]
[Black "Lindfeldt, Jan Magnus"]
[Result "1-0"]
[ECO "E91"]
[WhiteElo "2347"]
[BlackElo "2263"]
[Annotator "NA"]
[PlyCount "63"]
[EventDate "2018.10.27"]
[EventType "team-tourn"]
[EventCountry "DEN"]
[SourceTitle "playchess.com"]
[Source "ChessBase"]
[SourceQuality "1"]
[TimeControl "40/5400+30:1800+30"]

1. d4 {[%emt 0:11:13]} g6 {[%emt 0:00:19]} 2. c4 {[%emt 0:03:39]} Bg7 {[%emt 0:00:09]} 3. Nc3 {[%emt 0:00:09]} d6 {[%emt 0:00:24]} 4. Nf3 {[%emt 0:01:05]} Nf6 {[%emt 0:03:28]} 5. e4 {[%emt 0:00:25]} O-O {[%emt 0:00:10]} 6. Be2 {[%emt 0:00:09]} Na6 {[%emt 0:02:46]} 7. O-O {[%emt 0:00:08]} e5 {[%emt 0:00:23]} 8. dxe5 {[%emt 0:00:04]} dxe5 {[%emt 0:00:06]} 9. Qxd8 {[%emt 0:00:06]} Rxd8 {[%emt 0:00:04]} 10. Be3 {[%emt 0:00:09]} Ng4 {[%emt 0:30:30]} 11. Rfd1 {[%emt 0:00:06]} Be6 {[%emt 0:22:32]} 12. Rxd8+ {[%emt 0:13:27]} Rxd8 {[%emt 0:00:12]} 13. Bxa7 {[%emt 0:00:16]} b6 {[%emt 0:03:45]} 14. Ng5 {[%emt 0:01:59]} Nf6 {[%emt 0:02:19]} 15. Nxe6 {[%emt 0:05:21]} fxe6 {[%emt 0:00:10]} 16. a4 {[%emt 0:01:13]} Nb4 {[%emt 0:12:18]} 17. c5 {[%emt 0:05:07]} Rd2 {[%emt 0:04:22]} 18. cxb6 {[%emt 0:14:54]} cxb6 {[%emt 0:00:08]} 19. Bc4 {[%emt 0:12:28]} Bf8 {[%emt 0:02:32]} 20. Bxb6 {[%emt 0:06:15]} Rxb2 {[%emt 0:01:00]} 21. Bxe6+ {[%emt 0:03:01]} Kg7 {[%emt 0:00:04]} 22. a5 {[%emt 0:00:49]} Rc2 {[%emt 0:02:05]} 23. Nd5 {[%emt 0:00:24]} Nfxd5 {[%emt 0:06:21]} 24. Bxd5 {[%emt 0:00:35]} Bc5 {[%emt 0:00:16]} 25. Bxc5 {[%emt 0:02:23]} Rxc5 {[%emt 0:00:05]} 26. f4 {[%emt 0:03:18]} exf4 {[%emt 0:03:20]} 27. a6 {[%emt 0:02:38]} Nxd5 {[%emt 0:00:47]} 28. exd5 {[%emt 0:00:04]} Rc8 {[%emt 0:00:04]} 29. d6 {[%emt 0:00:40]} Kf7 {[%emt 0:00:18]} 30. d7 {[%emt 0:00:21]} Ra8 {[%emt 0:00:07]} 31. Re1 {[%emt 0:00:33]} Rd8 {[%emt 0:00:47]} 32. a7 {[%emt 0:00:15]} 1-0

[Event "DEN-chT XtraCon 2018-19"]
[Site "Denmark"]
[Date "2018.12.09"]
[Round "4"]
[White "Sahl, Bjarke"]
[Black "Borge, Nikolaj"]
[Result "1/2-1/2"]
[ECO "E97"]
[WhiteElo "2311"]
[BlackElo "2376"]
[Annotator "NA"]
[PlyCount "61"]
[EventDate "2018.10.27"]
[EventType "team-tourn"]
[EventCountry "DEN"]
[SourceTitle "playchess.com"]
[Source "ChessBase"]
[SourceQuality "1"]
[TimeControl "40/5400+30:1800+30"]

1. d4 {[%emt 0:00:00]} Nf6 {[%emt 0:00:32]} 2. c4 {[%emt 0:00:07]} g6 {[%emt 0:02:21]} 3. Nc3 {[%emt 0:00:18]} Bg7 {[%emt 0:00:14]} 4. e4 {[%emt 0:00:08]} d6 {[%emt 0:00:30]} 5. Nf3 {[%emt 0:00:06]} O-O {[%emt 0:00:43]} 6. Be2 {[%emt 0:00:07]} e5 {[%emt 0:03:04]} 7. O-O {[%emt 0:02:22]} Nc6 {[%emt 0:05:12]} 8. d5 {[%emt 0:00:25]} Ne7 {[%emt 0:00:05]} 9. b4 {[%emt 0:00:26]} Nh5 {[%emt 0:02:58]} 10. Re1 {[%emt 0:01:08]} f5 {[%emt 0:06:10]} 11. c5 {[%emt 0:15:03]} Kh8 {[%emt 0:15:07]} 12. Bc4 {[%emt 0:19:03]} h6 {[%emt 0:15:25]} 13. a4 {[%emt 0:06:20]} Ng8 {[%emt 0:17:26]} 14. Ra3 {[%emt 0:05:34]} a5 {[%emt 0:04:11]} 15. b5 {[%emt 0:06:05]} dxc5 {[%emt 0:06:41]} 16. exf5 {[%emt 0:06:44]} Bxf5 {[%emt 0:00:33]} 17. Ne4 {[%emt 0:01:52]} Qe7 {[%emt 0:07:22]} 18. Rae3 {[%emt 0:05:55]} Rae8 {[%emt 0:01:10]} 19. Bb2 {[%emt 0:03:55]} b6 {[%emt 0:01:26]} 20. d6 {[%emt 0:16:25]} cxd6 {[%emt 0:03:43]} 21. Nxd6 {[%emt 0:00:11]} Rd8 {[%emt 0:01:43]} 22. Nxf5 {[%emt 0:00:22]} gxf5 {[%emt 0:00:38]} 23. Qa1 {[%emt 0:04:41]} e4 {[%emt 0:00:26]} 24. Ne5 {[%emt 0:00:33]} Kh7 {[%emt 0:01:06]} 25. Nc6 {[%emt 0:01:01]} Bxb2 {[%emt 0:01:09]} 26. Qxb2 {[%emt 0:00:17]} Qg5 {[%emt 0:00:33]} 27. Nxd8 {[%emt 0:01:07]} Rxd8 {[%emt 0:00:08]} 28. Qe5 {[%emt 0:00:32]} Rd4 {[%emt 0:01:54]} 29. h4 {[%emt 0:01:38]} Qf6 {[%emt 0:01:16]} 30. Bxg8+ {[%emt 0:00:07]} Kxg8 {[%emt 0:00:00]} 31. Qe8+ {[%emt 0:00:06]} 1/2-1/2

[Event "DEN-chT XtraCon 2018-19"]
[Site "Denmark"]
[Date "2018.12.09"]
[Round "4"]
[White "Kristensen, Leif"]
[Black "Hoi, Carsten"]
[Result "1/2-1/2"]
[ECO "B06"]
[WhiteElo "2310"]
[BlackElo "2381"]
[Annotator "NA"]
[PlyCount "48"]
[EventDate "2018.10.27"]
[EventType "team-tourn"]
[EventCountry "DEN"]
[SourceTitle "playchess.com"]
[Source "ChessBase"]
[SourceQuality "1"]
[TimeControl "40/5400+30:1800+30"]

1. e4 {[%emt 0:00:42]} g6 {[%emt 0:02:15]} 2. d4 {[%emt 0:00:38]} Bg7 {[%emt 0:00:28]} 3. Nc3 {[%emt 0:01:19]} d6 {[%emt 0:00:53]} 4. Be3 {[%emt 0:01:27]} c6 {[%emt 0:01:34]} 5. Qd2 {[%emt 0:06:12]} b5 {[%emt 0:00:53]} 6. a3 {[%emt 0:09:18]} a6 {[%emt 0:04:46]} 7. f3 {[%emt 0:02:02]} Nd7 {[%emt 0:02:35]} 8. h4 {[%emt 0:01:38]} h5 {[%emt 0:05:32]} 9. Nh3 {[%emt 0:06:09]} Nb6 {[%emt 0:04:10]} 10. Ng5 {[%emt 0:04:47]} Nf6 {[%emt 0:03:26]} 11. b3 {[%emt 0:03:42]} O-O {[%emt 0:08:44]} 12. Rd1 {[%emt 0:05:26]} Qc7 {[%emt 0:03:48]} 13. Be2 {[%emt 0:01:05]} a5 {[%emt 0:04:26]} 14. O-O {[%emt 0:08:54]} Nh7 {[%emt 0:03:38]} 15. Nxh7 {[%emt 0:07:24]} Kxh7 {[%emt 0:00:27]} 16. f4 {[%emt 0:01:47]} b4 {[%emt 0:04:37]} 17. Nb1 {[%emt 0:03:41]} f5 {[%emt 0:17:44]} 18. Bf3 {[%emt 0:08:20]} fxe4 {[%emt 0:10:48]} 19. Bxe4 {[%emt 0:00:07]} Nd5 {[%emt 0:01:55]} 20. c4 {[%emt 0:02:29]} Nf6 {[%emt 0:02:38]} 21. Bd3 {[%emt 0:03:10]} Bf5 {[%emt 0:00:46]} 22. axb4 {[%emt 0:01:27]} axb4 {[%emt 0:00:09]} 23. Qxb4 {[%emt 0:07:50]} Rfb8 {[%emt 0:01:18]} 24. Qc3 {[%emt 0:00:43]} Ng4 {[%emt 0:04:35]} 1/2-1/2

[Event "DEN-chT XtraCon 2018-19"]
[Site "Denmark"]
[Date "2018.12.09"]
[Round "4"]
[White "Bank, Pelle"]
[Black "Skytte, Rasmus"]
[Result "1/2-1/2"]
[ECO "A40"]
[WhiteElo "2298"]
[BlackElo "2383"]
[Annotator "ChessBase"]
[PlyCount "79"]
[EventDate "2018.10.27"]
[EventType "team-tourn"]
[EventCountry "DEN"]
[SourceTitle "playchess.com"]
[Source "ChessBase"]
[SourceQuality "1"]
[TimeControl "40/5400+30:1800+30"]

1. d4 {[%emt 0:00:00]} e6 {[%emt 0:03:03]} 2. c3 {[%emt 0:04:17]} d5 {[%emt 0:03:19]} 3. Bf4 {[%emt 0:00:17]} Bd6 {[%emt 0:03:48]} 4. Bg3 {[%emt 0:00:20]} Nf6 {[%emt 0:00:41]} 5. Nd2 {[%emt 0:00:33]} O-O {[%emt 0:04:25]} 6. e3 {[%emt 0:00:43]} b6 {[%emt 0:02:53]} 7. Ngf3 {[%emt 0:02:26]} Bb7 {[%emt 0:00:27]} 8. Ne5 {[%emt 0:11:01]} c5 {[%emt 0:02:19]} 9. Bd3 {[%emt 0:10:07]} Nc6 {[%emt 0:02:51]} 10. O-O {[%emt 0:10:12]} Qc7 {[%emt 0:08:06]} 11. f4 {[%emt 0:03:57]} Ne7 {[%emt 0:03:18]} 12. Qb1 {[%emt 0:06:56]} Ng6 {[%emt 0:11:09]} 13. Rf3 {[%emt 0:03:16]} a5 {[%emt 0:08:37]} 14. Be1 {[%emt 0:15:34]} Ba6 {[%emt 0:04:30]} 15. Nxg6 {[%emt 0:21:00]} fxg6 {[%emt 0:03:50]} 16. Bxa6 {[%emt 0:00:20]} Rxa6 {[%emt 0:00:07]} 17. Bh4 Ng4 {[%emt 0:03:37]} 18. Qd3 {[%emt 0:02:19]} Raa8 {[%emt 0:00:45]} 19. h3 {[%emt 0:02:00]} Nh6 {[%emt 0:02:56]} 20. Rff1 {[%emt 0:01:04]} Rac8 {[%emt 0:03:36]} 21. Nf3 {[%emt 0:01:51]} Nf5 22. Bf2 Ne7 {[%emt 0:13:21]} 23. Rad1 {[%emt 0:01:49]} c4 {[%emt 0:05:12]} 24. Qc2 {[%emt 0:00:11]} b5 {[%emt 0:00:20]} 25. h4 {[%emt 0:01:20]} Qd7 {[%emt 0:01:24]} 26. g4 {[%emt 0:00:10]} e5 {[%emt 0:03:28]} 27. Nxe5 {[%emt 0:00:04]} Bxe5 {[%emt 0:00:08]} 28. dxe5 {[%emt 0:00:03]} Qxg4+ {[%emt 0:00:27]} 29. Kh2 {[%emt 0:00:09]} Nf5 {[%emt 0:02:21]} 30. Rxd5 {[%emt 0:00:17]} Nxh4 {[%emt 0:01:22]} 31. Bxh4 {[%emt 0:00:02]} Qxh4+ {[%emt 0:00:06]} 32. Kg2 {[%emt 0:00:26]} Qg4+ {[%emt 0:00:52]} 33. Kf2 {[%emt 0:00:17]} g5 {[%emt 0:01:12]} 34. Rh1 {[%emt 0:01:00]} g6 {[%emt 0:01:23]} 35. Qd1 {[%emt 0:00:51]} Qxd1 {[%emt 0:01:01]} 36. Rhxd1 {[%emt 0:01:18]} gxf4 {[%emt 0:00:27]} 37. exf4 {[%emt 0:00:10]} Rxf4+ {[%emt 0:00:08]} 38. Kg3 {[%emt 0:00:11]} Rcf8 {[%emt 0:00:48]} 39. Rxb5 {[%emt 0:00:36]} h5 {[%emt 0:00:35]} 40. Rd7 {[%emt 0:01:03]} 1/2-1/2

[Event "DEN-chT XtraCon 2018-19"]
[Site "Denmark"]
[Date "2018.12.09"]
[Round "4"]
[White "Palm, Nikolaj"]
[Black "Firooznia, Farzam"]
[Result "1/2-1/2"]
[ECO "D10"]
[WhiteElo "2281"]
[BlackElo "2094"]
[Annotator "NA"]
[PlyCount "65"]
[EventDate "2018.10.27"]
[EventType "team-tourn"]
[EventCountry "DEN"]
[SourceTitle "playchess.com"]
[Source "ChessBase"]
[SourceQuality "1"]
[TimeControl "40/5400+30:1800+30"]

1. d4 {[%emt 0:00:00]} Nf6 {[%emt 0:00:00]} 2. Nf3 {[%emt 0:00:18]} d5 {[%emt 0:01:29]} 3. c4 {[%emt 0:01:06]} c6 {[%emt 0:03:50]} 4. cxd5 {[%emt 0:00:22]} cxd5 {[%emt 0:00:12]} 5. Nc3 {[%emt 0:00:06]} g6 {[%emt 0:03:04]} 6. Bf4 {[%emt 0:01:21]} Nc6 {[%emt 0:01:30]} 7. Rc1 {[%emt 0:00:44]} Bg7 {[%emt 0:02:59]} 8. e3 {[%emt 0:02:34]} a6 {[%emt 0:00:48]} 9. Be2 {[%emt 0:08:37]} Nh5 {[%emt 0:03:29]} 10. Bg5 {[%emt 0:02:02]} h6 {[%emt 0:01:29]} 11. Bh4 {[%emt 0:00:08]} g5 {[%emt 0:00:49]} 12. Bg3 {[%emt 0:02:23]} Nxg3 {[%emt 0:08:25]} 13. hxg3 {[%emt 0:00:27]} Rb8 {[%emt 0:06:14]} 14. O-O {[%emt 0:08:58]} Bf5 {[%emt 0:02:14]} 15. Na4 {[%emt 0:06:35]} Qd6 {[%emt 0:09:08]} 16. Nc5 {[%emt 0:17:24]} O-O {[%emt 0:04:43]} 17. Qd2 Rfc8 {[%emt 0:13:53]} 18. Nxb7 {[%emt 0:16:43]} Rxb7 {[%emt 0:01:50]} 19. Bxa6 {[%emt 0:00:08]} Rcb8 {[%emt 0:04:56]} 20. Bxb7 {[%emt 0:00:09]} Rxb7 {[%emt 0:00:05]} 21. a3 {[%emt 0:07:21]} e5 {[%emt 0:11:33]} 22. b4 {[%emt 0:05:45]} exd4 {[%emt 0:00:53]} 23. Nxd4 {[%emt 0:00:36]} Nxd4 {[%emt 0:07:22]} 24. exd4 {[%emt 0:00:02]} Ra7 {[%emt 0:01:25]} 25. Rc3 {[%emt 0:01:26]} Qb6 {[%emt 0:00:38]} 26. Rd1 {[%emt 0:00:27]} Bg4 {[%emt 0:01:13]} 27. f3 {[%emt 0:00:14]} Bf5 {[%emt 0:01:09]} 28. g4 {[%emt 0:00:53]} Be6 {[%emt 0:01:35]} 29. Qe3 {[%emt 0:02:32]} Rb7 {[%emt 0:02:37]} 30. g3 {[%emt 0:01:40]} Ra7 {[%emt 0:02:47]} 31. Kg2 {[%emt 0:00:24]} Rb7 {[%emt 0:00:15]} 32. Rd2 {[%emt 0:00:51]} Ra7 {[%emt 0:02:06]} 33. Qd3 {[%emt 0:09:26]} 1/2-1/2

[Event "DEN-chT XtraCon 2018-19"]
[Site "Denmark"]
[Date "2018.12.09"]
[Round "4"]
[White "Jaksland, Tim"]
[Black "Jacobsen, Mikkel Manosri"]
[Result "1-0"]
[ECO "A49"]
[WhiteElo "2252"]
[BlackElo "2331"]
[Annotator "NA"]
[PlyCount "165"]
[EventDate "2018.10.27"]
[EventType "team-tourn"]
[EventCountry "DEN"]
[SourceTitle "playchess.com"]
[Source "ChessBase"]
[SourceQuality "1"]
[TimeControl "40/5400+30:1800+30"]

1. Nf3 {[%emt 0:00:00]} g6 {[%emt 0:00:00]} 2. d4 {[%emt 0:01:30]} Nf6 {[%emt 0:00:45]} 3. g3 {[%emt 0:02:11]} Bg7 {[%emt 0:02:46]} 4. Bg2 {[%emt 0:00:26]} c5 {[%emt 0:00:44]} 5. c3 {[%emt 0:09:24]} Qc7 {[%emt 0:09:26]} 6. O-O {[%emt 0:08:27]} b6 {[%emt 0:06:00]} 7. Ne5 {[%emt 0:16:04]} Bb7 {[%emt 0:02:41]} 8. Qb3 {[%emt 0:01:03]} O-O {[%emt 0:01:46]} 9. Bxb7 {[%emt 0:01:48]} Qxb7 {[%emt 0:00:09]} 10. dxc5 {[%emt 0:02:47]} Qe4 {[%emt 0:04:22]} 11. cxb6 {[%emt 0:01:49]} axb6 {[%emt 0:00:03]} 12. Nc4 {[%emt 0:16:16]} Qxe2 {[%emt 0:03:39]} 13. Nba3 {[%emt 0:04:02]} Nc6 {[%emt 0:09:15]} 14. Qd1 {[%emt 0:09:54]} Qe6 {[%emt 0:05:40]} 15. Re1 {[%emt 0:01:08]} Qh3 {[%emt 0:01:59]} 16. f3 {[%emt 0:00:25]} d5 {[%emt 0:09:29]} 17. Nxb6 {[%emt 0:05:04]} Rad8 {[%emt 0:00:44]} 18. Qa4 {[%emt 0:03:01]} Rd6 {[%emt 0:03:02]} 19. Nb5 {[%emt 0:01:40]} Re6 {[%emt 0:01:40]} 20. Bf4 {[%emt 0:02:09]} g5 {[%emt 0:06:13]} 21. Rxe6 {[%emt 0:05:38]} fxe6 {[%emt 0:12:15]} 22. Nc7 {[%emt 0:01:15]} gxf4 {[%emt 0:00:36]} 23. Qxc6 {[%emt 0:00:08]} Rb8 {[%emt 0:13:46]} 24. Na4 {[%emt 0:01:14]} e5 {[%emt 0:02:06]} 25. Qe6+ {[%emt 0:00:59]} Qxe6 {[%emt 0:00:34]} 26. Nxe6 {[%emt 0:00:01]} Bh6 {[%emt 0:02:26]} 27. gxf4 {[%emt 0:00:24]} Bxf4 {[%emt 0:00:18]} 28. Re1 {[%emt 0:01:43]} Kf7 {[%emt 0:00:35]} 29. Nxf4 {[%emt 0:00:54]} exf4 {[%emt 0:00:02]} 30. b3 {[%emt 0:00:12]} Ra8 {[%emt 0:00:28]} 31. Re2 {[%emt 0:00:17]} Nd7 {[%emt 0:00:13]} 32. Rd2 {[%emt 0:00:30]} Ra5 {[%emt 0:00:41]} 33. Kf2 {[%emt 0:00:55]} e5 {[%emt 0:00:13]} 34. Rd1 {[%emt 0:01:18]} Nf6 {[%emt 0:00:43]} 35. Rg1 {[%emt 0:01:00]} Ra8 {[%emt 0:00:15]} 36. Rg5 {[%emt 0:00:51]} Nd7 {[%emt 0:00:26]} 37. Ke2 {[%emt 0:00:36]} Kf6 {[%emt 0:00:09]} 38. Rg1 {[%emt 0:00:24]} e4 {[%emt 0:00:10]} 39. Rg4 {[%emt 0:00:24]} h5 {[%emt 0:00:41]} 40. Rxf4+ {[%emt 0:00:47]} Ke5 {[%emt 0:01:12]} 41. Rf7 {[%emt 0:02:47]} Nf6 {[%emt 0:00:03]} 42. Rg7 {[%emt 0:08:27]} Rf8 {[%emt 0:01:14]} 43. fxe4 {[%emt 0:04:23]} Nxe4 {[%emt 0:00:46]} 44. Ke3 {[%emt 0:01:53]} Rf1 {[%emt 0:01:58]} 45. Rg2 {[%emt 0:07:50]} h4 {[%emt 0:02:37]} 46. b4 {[%emt 0:01:26]} h3 {[%emt 0:02:24]} 47. Rb2 {[%emt 0:00:43]} Nd6 {[%emt 0:00:39]} 48. Nb6 {[%emt 0:01:08]} Nf5+ {[%emt 0:00:21]} 49. Kd3 {[%emt 0:00:50]} Rf3+ {[%emt 0:00:09]} 50. Kc2 {[%emt 0:04:30]} d4 {[%emt 0:01:57]} 51. cxd4+ {[%emt 0:01:35]} Nxd4+ {[%emt 0:01:53]} 52. Kd1 {[%emt 0:00:49]} Rf1+ {[%emt 0:00:58]} 53. Kd2 {[%emt 0:00:04]} Ke4 {[%emt 0:01:33]} 54. Nc4 {[%emt 0:00:41]} Rh1 {[%emt 0:01:04]} 55. Nd6+ {[%emt 0:00:52]} Kd5 {[%emt 0:00:01]} 56. Kd3 {[%emt 0:00:30]} Rd1+ {[%emt 0:01:58]} 57. Rd2 {[%emt 0:00:42]} Rf1 {[%emt 0:00:07]} 58. Nc4 {[%emt 0:00:12]} Rb1 {[%emt 0:02:15]} 59. Ne3+ {[%emt 0:00:10]} Ke5 {[%emt 0:00:05]} 60. Ng4+ {[%emt 0:00:27]} Kd5 {[%emt 0:00:43]} 61. Kc3 {[%emt 0:00:24]} Rc1+ {[%emt 0:00:05]} 62. Kb2 {[%emt 0:00:05]} Re1 {[%emt 0:01:23]} 63. Nf2 {[%emt 0:01:16]} Re3 {[%emt 0:00:48]} 64. Ng4 {[%emt 0:00:30]} Re6 {[%emt 0:01:41]} 65. Kc3 {[%emt 0:00:26]} Rc6+ {[%emt 0:00:14]} 66. Kd3 {[%emt 0:00:11]} Nf3 {[%emt 0:02:17]} 67. Rf2 {[%emt 0:00:17]} Ne1+ {[%emt 0:00:18]} 68. Ke2 {[%emt 0:00:33]} Ng2 {[%emt 0:00:41]} 69. Ne3+ {[%emt 0:00:31]} Ke4 {[%emt 0:00:34]} 70. Nxg2 {[%emt 0:00:42]} hxg2 {[%emt 0:00:14]} 71. Rxg2 {[%emt 0:00:18]} Rc2+ {[%emt 0:00:07]} 72. Kf1 {[%emt 0:00:09]} Rc1+ {[%emt 0:00:21]} 73. Kf2 {[%emt 0:00:04]} Kf4 {[%emt 0:00:27]} 74. h3 {[%emt 0:01:16]} Rc2+ {[%emt 0:01:27]} 75. Kg1 {[%emt 0:00:05]} Rc1+ {[%emt 0:00:02]} 76. Kh2 {[%emt 0:00:07]} Rb1 {[%emt 0:00:02]} 77. a3 {[%emt 0:01:08]} Ra1 {[%emt 0:00:06]} 78. Rb2 {[%emt 0:00:22]} Rxa3 {[%emt 0:00:19]} 79. b5 {[%emt 0:00:11]} Ra7 {[%emt 0:00:52]} 80. b6 {[%emt 0:00:05]} Rb7 {[%emt 0:00:04]} 81. Rb4+ {[%emt 0:00:21]} Kg5 {[%emt 0:01:47]} 82. Kg3 {[%emt 0:00:06]} Kh5 {[%emt 0:00:10]} 83. Kf4 {[%emt 0:00:36]} 1-0

[Event "DEN-chT XtraCon 2018-19"]
[Site "Denmark"]
[Date "2018.12.09"]
[Round "4"]
[White "Sobjerg, Erik"]
[Black "Ramsdal, Jens Albert"]
[Result "1/2-1/2"]
[ECO "A05"]
[WhiteElo "2252"]
[BlackElo "2246"]
[Annotator "NA"]
[PlyCount "80"]
[EventDate "2018.10.27"]
[EventType "team-tourn"]
[EventCountry "DEN"]
[SourceTitle "playchess.com"]
[Source "ChessBase"]
[SourceQuality "1"]
[TimeControl "40/5400+30:1800+30"]

1. Nf3 {[%emt 0:00:00]} Nf6 {[%emt 0:00:23]} 2. c4 {[%emt 0:00:00]} g6 {[%emt 0:00:03]} 3. Nc3 {[%emt 0:00:00]} Bg7 {[%emt 0:00:05]} 4. e4 {[%emt 0:00:00]} d6 {[%emt 0:00:04]} 5. d4 {[%emt 0:00:24]} O-O {[%emt 0:00:05]} 6. h3 {[%emt 0:00:19]} c5 {[%emt 0:00:08]} 7. Be3 {[%emt 0:00:06]} cxd4 {[%emt 0:00:32]} 8. Nxd4 {[%emt 0:00:09]} Nc6 {[%emt 0:01:32]} 9. Be2 {[%emt 0:00:28]} Bd7 {[%emt 0:00:48]} 10. O-O {[%emt 0:00:20]} Nxd4 {[%emt 0:00:14]} 11. Bxd4 {[%emt 0:00:23]} Bc6 {[%emt 0:00:06]} 12. Qc2 {[%emt 0:00:28]} a5 {[%emt 0:04:47]} 13. Rad1 {[%emt 0:01:30]} Nd7 {[%emt 0:00:10]} 14. Bxg7 {[%emt 0:00:09]} Kxg7 {[%emt 0:00:02]} 15. Bg4 {[%emt 0:01:05]} Rc8 {[%emt 0:27:28]} 16. Rfe1 {[%emt 0:20:00]} Rc7 {[%emt 0:05:47]} 17. Bxd7 {[%emt 0:11:16]} Rxd7 {[%emt 0:00:15]} 18. Nd5 {[%emt 0:01:08]} Bxd5 {[%emt 0:09:16]} 19. Rxd5 {[%emt 0:00:13]} f6 {[%emt 0:03:31]} 20. h4 {[%emt 0:08:03]} Rc7 {[%emt 0:07:10]} 21. Re3 {[%emt 0:06:23]} Qc8 {[%emt 0:06:21]} 22. b3 {[%emt 0:07:10]} Rc5 {[%emt 0:00:05]} 23. Qe2 {[%emt 0:03:30]} b6 {[%emt 0:08:09]} 24. f4 {[%emt 0:06:01]} Rf7 {[%emt 0:09:41]} 25. h5 {[%emt 0:04:53]} e5 {[%emt 0:02:29]} 26. hxg6 {[%emt 0:05:49]} hxg6 {[%emt 0:01:51]} 27. f5 {[%emt 0:03:23]} Rxd5 {[%emt 0:00:07]} 28. fxg6 {[%emt 0:01:08]} Rf8 {[%emt 0:00:40]} 29. Rh3 {[%emt 0:15:03]} Qxh3 {[%emt 0:00:05]} 30. gxh3 {[%emt 0:00:08]} Rd4 {[%emt 0:00:05]} 31. Qg4 {[%emt 0:01:07]} Rh8 {[%emt 0:07:13]} 32. h4 {[%emt 0:00:32]} f5 {[%emt 0:01:19]} 33. Qxf5 {[%emt 0:01:26]} Rxh4 {[%emt 0:00:02]} 34. Qf7+ {[%emt 0:00:31]} Kh6 {[%emt 0:00:05]} 35. Qh7+ {[%emt 0:01:12]} Kg5 {[%emt 0:00:01]} 36. Qe7+ {[%emt 0:01:23]} Kg4 {[%emt 0:02:07]} 37. g7 Rd1+ {[%emt 0:00:09]} 38. Kf2 {[%emt 0:02:11]} Rh2+ {[%emt 0:00:05]} 39. Ke3 {[%emt 0:00:05]} Re1+ {[%emt 0:01:18]} 40. Kd3 {[%emt 0:00:08]} Rd1+ {[%emt 0:01:18]} 1/2-1/2